Cogmind - Beta 10.2 @@@ ROGUE MODE // 2021.03.19 @ 23:37:46 Player: BOTHUNTER Result: Destroyed by D-53 Grenadier with Mini Grenade Launcher Performance ------------- Evolutions (1) 500 Regions Visited (4) 800 Robots Destroyed (59) 295 Value Destroyed (1095) 1095 Prototype IDs (1) 20 Alien Tech Used (0) 0 Bonus (0) 0 TOTAL SCORE: 2710 Bonus ------- None Cogmind --------- Core Integrity 0/400 Matter 296/300 Energy 266/280 System Corruption 0% Temperature Cool (0) Movement Walking (120) Location -9/Mines Parts ------- > --- POWER (1) -------- Heavy Ion Engine > --- PROPULSION (3) --- Improved Aluminum Leg Improved Aluminum Leg Improved Aluminum Leg > --- UTILITY (2) ------ Medium Storage Unit > --- WEAPON (3) ------- EMP Blaster Mace Heavy Hammer > --- INVENTORY (8) ---- Ion Engine Heavy Ion Engine Light Treads Small Storage Unit Medium Matter Pod (100) Light Armor Plating Faulty Advanced Beam Cannon Rocket Launcher Peak State ------------ > --- POWER ------------ Heavy Ion Engine > --- PROPULSION ------- Improved Aluminum Leg Improved Aluminum Leg Improved Aluminum Leg > --- UTILITY ---------- Medium Storage Unit > --- WEAPON ----------- EMP Blaster Mace Heavy Hammer > --- INVENTORY -------- Ion Engine Heavy Ion Engine Light Treads Small Storage Unit Medium Matter Pod Light Armor Plating Advanced Beam Cannon [Rating: 17] Favorites ----------- Power Reinforced Ion Engine Engine Reinforced Ion Engine Propulsion Light Treads Treads Light Treads Leg Aluminum Leg Utility Medium Storage Unit Device Improved Heat Sink Storage Medium Storage Unit Weapon Light Assault Rifle Energy Gun Backup Laser I Ballistic Gun Light Assault Rifle Launcher EMP Blaster Special Weapon Mining Laser Impact Weapon Mace Build | -11 -10 -10 -9 -9 ------- Run | Scr Mat Min Mat Min Slots Evolved 2 | . . . 2 . Power . | . . . . . Propulsion 1 | . . . 1 . Utility . | . . . . . Weapon 1 | . . . 1 . Parts Attached 40 | 6 5 3 26 . Power 6 | 1 2 . 3 . Engine 6 | 1 2 . 3 . Core . | . . . . . Reactor . | . . . . . Propulsion 15 | 2 1 1 11 . Treads 8 | 2 1 1 4 . Leg 7 | . . . 7 . Wheel . | . . . . . Hover . | . . . . . Flight . | . . . . . Utility 4 | 1 1 . 2 . Device 1 | . . . 1 . Storage 3 | 1 1 . 1 . Processor . | . . . . . Hackware . | . . . . . Protection . | . . . . . Artifact . | . . . . . Weapon 15 | 2 1 2 10 . Energy Gun 2 | 1 . 1 . . Energy Cannon . | . . . . . Ballistic Gun 5 | 1 1 1 2 . Ballistic Cannon . | . . . . . Launcher 1 | . . . 1 . Special Weapon 2 | . . . 2 . Impact Weapon 5 | . . . 5 . Slashing Weapon . | . . . . . Piercing Weapon . | . . . . . Special Melee Weapon . | . . . . . Unidentified Prototypes 1 | . . . 1 . Parts Lost 8 | . 1 . 7 . Power . | . . . . . Propulsion 3 | . . . 3 . Utility 1 | . . . 1 . Weapon 4 | . 1 . 3 . Highest Loss Streak 3 | . 1 . 3 . Average Slot Usage (%) 89 | . 94 100 84 88 Engine 12 | . 14 14 10 11 Treads 16 | . 28 28 10 . Leg 11 | . . . 17 33 Device 1 | . . . 3 . Storage 18 | . 23 28 14 11 Energy Gun 8 | . 20 15 . . Ballistic Gun 7 | . 6 12 9 . Launcher 1 | . . . . 11 Special Weapon 2 | . . . 5 . Impact Weapon 8 | . . . 13 22 Naked Turns . | . . . . . Heaviest Build 27 | 12 19 19 27 25 Greatest Support 60 | 40 40 40 60 39 Greatest Overweight (x) 2 | 2 . . 2 . Average Overweight (x) . | . . . . . Largest Inventory Capacity 10 | 6 10 10 10 8 Average Capacity 8 | 5 8 10 8 8 Most Carried 10 | 4 10 10 9 8 Average Carried 6 | 2 6 9 6 7 Final Capacity 10 | 6 10 10 8 8 Final Carried 10 | 4 10 9 7 8 Class Distribution -------------------- 85% | Mutant 13% | Scavenger-Gunner Dominant Class ---------------- Mutant | -10/Materials Mutant | -10/Mines Mutant | -9/Materials Mutant | -9/Mines Resources | -11 -10 -10 -9 -9 ----------- Run | Scr Mat Min Mat Min Matter Collected 831 | 210 231 28 352 10 Remotely . | . . . . . Salvage Created 2139 | . 613 112 1024 390 Parts 94 | . 28 13 48 5 Haulers Intercepted 4 | . 1 . 3 . Recyclers Shooed 6 | . 3 . 2 1 Parts Field Recycled . | . . . . . Retrieved Matter . | . . . . . Parts Self-Destructed . | . . . . . Prevented . | . . . . . Kills | -11 -10 -10 -9 -9 ------- Run | Scr Mat Min Mat Min Combat Hostiles Destroyed 34 | . 10 6 17 1 Melee 2 | . . . 2 . Guns 26 | . 9 6 11 . Cannons 2 | . . . 2 . AOE 1 | . . . . 1 Classes Destroyed 11 | . 7 . 3 1 Worker 6 | . 1 . 3 2 Builder 2 | . . . 2 . Tunneler 3 | . 1 . . 2 Hauler 4 | . 1 . 3 . Recycler 8 | . 2 . 2 4 Watcher 2 | . 1 . 1 . Swarmer 12 | . 3 5 4 . Grunt 15 | . 7 1 7 . Brawler 1 | . . . 1 . Sentry 5 | . . . 5 . Demolisher 1 | . . . . 1 Best Kill Streak 5 | . 5 3 5 5 Combat Bots Only 4 | . 4 3 4 1 Max Kills in Single Turn 2 | . 2 1 2 1 Gunslinging 1 | . . . 1 . Exploded 1 | . . . . 1 Melee 1 | . . . 1 . Uniques/NPCs Destroyed . | . . . . . Combat | -11 -10 -10 -9 -9 -------- Run | Scr Mat Min Mat Min Damage Taken 2385 | . 602 180 1432 171 Core 575 | . 135 34 349 57 Absorbed by Shields . | . . . . . Core Remaining (%) 66 | 100 . 32 . . Volleys Fired 125 | . 65 13 46 1 Largest 3 | . 2 2 3 1 Hottest 200 | . 70 60 200 33 Shots Fired 273 | . 117 26 129 1 Gun 260 | . 117 26 117 . Cannon . | . . . . . Launcher 1 | . . . . 1 Special 12 | . . . 12 . Kinetic 156 | . 31 8 117 . Thermal 116 | . 86 18 12 . Explosive . | . . . . . Electromagnetic 1 | . . . . 1 Robot Hit Streak 15 | . 11 5 15 . Robot Miss Streak 6 | . 6 2 3 . Penetration Max . | . . . . . Secondary Targets 6 | . 1 2 3 . Max Gunslinging Chain 1 | . 1 1 1 . Shots Hit Robots 247 | . 83 14 139 11 Core Hits 82 | . 32 7 40 3 Critical Hits 1 | . 1 . . . Critical Kills . | . . . . . Critical Parts Destroyed 1 | . 1 . . . Melee Attacks 80 | . . . 66 14 Impact 80 | . . . 66 14 Slashing . | . . . . . Piercing . | . . . . . Sneak Attacks 19 | . . . 9 10 Combat Hostiles . | . . . . . Follow-up Attacks 18 | . . . 17 1 Damage Inflicted 4225 | . 765 153 2461 846 Guns 1513 | . 765 153 595 . Cannons . | . . . . . Explosions 8 | . . . . 8 Melee 2582 | . . . 1744 838 Ramming . | . . . . . Kinetic 792 | . 166 31 595 . Thermal 843 | . 599 122 122 . Explosive . | . . . . . Electromagnetic 8 | . . . . 8 Impact 2582 | . . . 1744 838 Slashing . | . . . . . Piercing . | . . . . . Highest Corruption 1 | . 1 1 . . Average Corruption 1 | . 1 1 . . Corruption Purged . | . . . . . Effects 1 | . 1 . . . Energy Discharges 1 | . 1 . . . Overload Shots . | . . . . . Overflow Damage 688 | . . . 340 348 Projectiles . | . . . . . Explosions . | . . . . . Melee 688 | . . . 340 348 Knockbacks 9 | . . . 4 5 Impact 9 | . . . 4 5 Kinetic . | . . . . . Secondary . | . . . . . Self-Inflicted Damage . | . . . . . Shots . | . . . . . Rammed . | . . . . . Targets Rammed . | . . . . . Kicked . | . . . . . Crushed . | . . . . . Highest Temperature 225 | . 225 40 170 . Average Temperature 65 | . 89 16 39 . Received Heat Transfer 687 | . 249 12 426 . Effects 1 | . 1 . . . Interference 1 | . 1 . . . Siege Activations . | . . . . . Robots Corrupted . | . . . . . Combat Hostiles . | . . . . . Parts Fried 20 | . . . 10 10 Impact Corruptions 27 | . . . 14 13 Robots Melted 1 | . 1 . . . Combat Hostiles 1 | . 1 . . . Parts Melted 6 | . 4 1 1 . Heat Transferred 2768 | . 2183 335 250 . Parts Sabotaged . | . . . . . Parts Stolen . | . . . . . Parts Stripped . | . . . . . Power Chain Reactions . | . . . . . Missiles Intercepted . | . . . . . Alert | -11 -10 -10 -9 -9 ------- Run | Scr Mat Min Mat Min Peak Influence 387 | . 216 229 387 152 Initial 112 | . . 58 89 112 Average 166 | . 95 148 235 137 Maximum Alert Level 1 | . 1 1 1 . Low Security (%) 61 | 100 94 87 26 100 Level 1 38 | . 5 12 73 . Level 2 . | . . . . . Level 3 . | . . . . . Level 4 . | . . . . . Level 5 . | . . . . . High Security . | . . . . . Max Security . | . . . . . Squads Dispatched 4 | . 2 1 1 . Investigation 3 | . 1 1 1 . Extermination . | . . . . . Reinforcement 1 | . 1 . . . Assault . | . . . . . Garrison . | . . . . . Intercept . | . . . . . Construction Impeded . | . . . . . Haulers Reinforced . | . . . . . Stealth | -11 -10 -10 -9 -9 --------- Run | Scr Mat Min Mat Min Distress Signals 8 | . 2 . 5 1 Communications Jammed . | . . . . . Distress Signals . | . . . . . Times Spotted 69 | . 16 7 26 20 Peak Tracking Total 20 | . 3 3 6 20 Tactical Retreats 3 | . 1 . 2 . Traps | -11 -10 -10 -9 -9 ------- Run | Scr Mat Min Mat Min Traps Triggered . | . . . . . Indirectly . | . . . . . Trap Hack Attempts . | . . . . . Triggered . | . . . . . Disarmed . | . . . . . Reprogrammed . | . . . . . Reused . | . . . . . Traps Extracted . | . . . . . Installed . | . . . . . Triggered . | . . . . . Machines | -11 -10 -10 -9 -9 ---------- Run | Scr Mat Min Mat Min Machines Disabled . | . . . . . Max in Single Turn . | . . . . . Machines Sabotaged . | . . . . . Garrisons Compromised . | . . . . . Overloaded Fab Kills . | . . . . . Fab Network Shutdowns . | . . . . . Hacking | -11 -10 -10 -9 -9 --------- Run | Scr Mat Min Mat Min Machines Accessed 11 | . 3 1 7 . Terminals 7 | . 2 1 4 . Fabricators . | . . . . . Repair Stations 2 | . 1 . 1 . Recycling Units 1 | . . . 1 . Scanalyzers 1 | . . . 1 . Garrison Access . | . . . . . Total Hacks 38 | . 11 5 22 . Successful 27 | . 8 1 18 . Failed 11 | . 3 4 4 . Catastrophic 1 | . . 1 . . Database Lockouts . | . . . . . Manual 24 | . 9 7 8 . Terminals 29 | . 10 5 14 . Fabricators . | . . . . . Repair Stations 5 | . 1 . 4 . Recycling Units 2 | . . . 2 . Scanalyzers 2 | . . . 2 . Garrison Access . | . . . . . Terminal Hacks 10 | . 5 1 4 . Part Schematic 1 | . 1 . . . Robot Analysis 4 | . 3 1 . . Branch Access Points 1 | . . . 1 . Terminal Index 1 | . . . 1 . Dispatch Records 1 | . . . 1 . Hauler Manifests 1 | . 1 . . . Zone Layout 1 | . . . 1 . Fabricator Hacks . | . . . . . Repair Station Hacks 5 | . 1 . 4 . Scan Component 2 | . . . 2 . Repair 2 | . . . 2 . Refit 1 | . 1 . . . Recycling Unit Hacks 2 | . . . 2 . Report Inventory 1 | . . . 1 . Retrieve Components 1 | . . . 1 . Scanalyzer 2 | . . . 2 . Insert Component 1 | . . . 1 . Analyze 1 | . . . 1 . Garrison Access Hacks . | . . . . . Unauthorized Hacks 8 | . 2 . 6 . Terminals 8 | . 2 . 6 . Track 2 | . . . 2 . Botnet 6 | . 2 . 4 . Fabricators . | . . . . . Repair Stations . | . . . . . Recycling Units . | . . . . . Scanalyzers . | . . . . . Garrison Access . | . . . . . Data Cores Recovered . | . . . . . Used . | . . . . . Hacking Detections 7 | . 2 1 4 . Full Trace Events 5 | . 2 1 2 . Feedback Events 1 | . 1 . . . Corruption 1 | . 1 . . . Feedback Blocked . | . . . . . Robot Schematics Acquired . | . . . . . Robots Built . | . . . . . Matter . | . . . . . Time . | . . . . . Total Robot Build Rating . | . . . . . Part Schematics Acquired 2 | . 1 . 1 . Parts Built . | . . . . . Matter . | . . . . . Time . | . . . . . Total Part Build Rating . | . . . . . Parts Repaired 2 | . . . 2 . Time 58 | . . . 58 . Parts Recycled . | . . . . . Recycled Matter . | . . . . . Retrieved Matter . | . . . . . Retrieved Components 10 | . . . 10 . Parts Scanalyzed 1 | . . . 1 . Part Schematics Acquired 1 | . . . 1 . Parts Damaged . | . . . . . Bothacking | -11 -10 -10 -9 -9 ------------ Run | Scr Mat Min Mat Min Used RIF Installer . | . . . . . Robots Hacked . | . . . . . Non-combat . | . . . . . Combat . | . . . . . Robot Hacks Applied . | . . . . . Relay Couplers Released . | . . . . . Robots Rewired . | . . . . . Allies Hacked . | . . . . . Hacks Repelled . | . . . . . Allies | -11 -10 -10 -9 -9 -------- Run | Scr Mat Min Mat Min Total Allies 3 | . . . . 3 Largest Group 3 | . . . . 3 Highest-Rated Group 40 | . . . . 40 Highest-Rated Ally 16 | . . . . 16 Total Orders . | . . . . . Ally Attacks 9 | . . . . 9 Total Damage 109 | . . . . 109 Kills . | . . . . . Allies Corrupted . | . . . . . Allies Melted . | . . . . . Intel | -11 -10 -10 -9 -9 ------- Run | Scr Mat Min Mat Min Robot Analysis Total 4 | . 3 1 . . Derelict Logs Recovered 3 | . . 1 . 2 Drone Launches . | . . . . . Drone Recoveries . | . . . . . Exploration | -11 -10 -10 -9 -9 ------------- Run | Scr Mat Min Mat Min Turns Passed 2385 | 81 793 147 1152 212 Spaces Moved 1121 | 49 368 65 495 144 Core 10 | 10 . . . . Treads 668 | 39 368 65 196 . Legs 443 | . . . 299 144 Wheels . | . . . . . Hover . | . . . . . Flight . | . . . . . Fastest Speed 50 | 50 160 160 120 120 Average Speed 146 | 141 160 160 142 120 Slowest Speed 180 | 160 160 160 180 120 Overloaded Moves . | . . . . . Propulsion Burnouts . | . . . . . Robots Hopped . | . . . . . Cave-ins Triggered . | . . . . . Exploration Rate (%) 26 | 3 40 17 38 36 Regions Visited 4 Branch Regions 2 Pre-discovered Areas 1 | . . 1 . . Known Exits Taken 1 | . . . 1 . Unknown Exits Taken 3 | 1 1 1 . . Scrap Searched . | . . . . . Spaces Dug 4 | . . . 3 1 Terrain Destroyed 5 | . . . 4 1 Melee 2 | . . . 1 1 Projectile 3 | . . . 3 . AOE . | . . . . . Terrain Rammed . | . . . . . Walls Destroyed . | . . . . . Machines Disabled . | . . . . . Actions | -11 -10 -10 -9 -9 --------- Run | Scr Mat Min Mat Min Total 1519 | 58 465 84 753 159 Wait 139 | . 15 . 122 2 Move 1117 | 48 367 64 494 144 Hop . | . . . . . Pick Up 18 | 4 7 1 5 1 Fast Attach 23 | 6 2 1 14 . Attach 10 | . . 1 9 . Detach 1 | . . . 1 . Swap 7 | . 3 1 3 . Drop 23 | . 6 3 14 . Fire 125 | . 65 13 46 1 Melee 56 | . . . 45 11 Ram . | . . . . . Kick . | . . . . . Crush . | . . . . . Escape Stasis . | . . . . . Rewire . | . . . . . Trap . | . . . . . Miscellaneous . | . . . . . Route ------- -11/Scrapyard -10/Materials (discovered 2 exits: *Mat / *Min) -10/Mines -9/Materials (discovered 5 exits: [*Mat] / *Min x2 / *Sto x2) -9/Mines (discovered 1 exit: [*Mat]) History --------- Turn | Location | Event 23 | -11/Scrapyard | Discovered new exit (range 13) 82 | -11/Scrapyard | Entered Materials 330 | -10/Materials | Build established: Mutant 331 | -10/Materials | Discovered new exit (range 15) 442 | -10/Materials | Discovered new exit (range 8) 803 | -10/Materials | Core integrity fell below 50% 875 | -10/Materials | Entered Mines 976 | -10/Mines | Learned location of Zion (-6) 999 | -10/Mines | Discovered new exit (range 9) 1022 | -10/Mines | Entered Materials 1022 | -9/Materials | Evolved 2 slots: Propulsion x1, Weapon x1 1309 | -9/Materials | Build established: Scavenger-Gunner 1472 | -9/Materials | Identified exit to Mines 1472 | -9/Materials | Identified exit to Storage 1506 | -9/Materials | Discovered new exit (range 16) 1663 | -9/Materials | Build established: Mutant 1755 | -9/Materials | Repaired Rnf. Ion Engine 1777 | -9/Materials | Core integrity fell below 50% 1782 | -9/Materials | Repaired Aluminum Leg 1822 | -9/Materials | Lost 3 parts (1n1u1w) 2095 | -9/Materials | Core integrity fell below 20% 2174 | -9/Materials | Entered Mines 2186 | -9/Mines | Received a Rocket Launcher from a helpful Derelict 2231 | -9/Mines | Discovered new exit (range 8) 2253 | -9/Mines | Assisted by bots powering up and referring to "LRC-V3" 2260 | -9/Mines | Learned 4 Materials zone layouts 2298 | -9/Mines | Learned Materials garrison access intel 2362 | -9/Mines | Assembled infested the area 2386 | -9/Mines | Destroyed by D-53 Grenadier with Mini Grenade Launcher Last Messages --------------- 02375_ as-38358 destroyed. 02375_ as-85965 destroyed. 02375_ as-90643 destroyed. 02375_ Mercenary 2a destroyed. 02375_ as-37673 destroyed. 02377_ R-06 Scavenger destroyed. 02379_ as-51332 destroyed. 02379_ as-28298 destroyed. 02379_ as-89146 destroyed. 02379_ as-38070 destroyed. 02379_ as-69828 destroyed. 02379_ as-02990 destroyed. 02379_ as-66714 destroyed. 02381_ as-14122 destroyed. 02381_ as-96092 destroyed. 02381_ as-60269 destroyed. 02381_ as-39782 destroyed. 02381_ as-60456 destroyed. 02383_ D-53 Grenadier destroyed. 02384_ U-05 Engineer lays Concrete. Map ----- +----------------------------------------------------+ | ?????????????????????????????????????????????????? | | ?????????????????????????????????????????????????? | | ####?????????????????????????????????????????????? | | #########?????????????????????????#####???????? | | % #????????????????????????## ##??????? | | ######### #????#####?????????????### #??????? | | ##???????# #????# #????????????## #??????? | | #??????### ###### #??????####### ##??????? | | ???????# ##????## # #???????? | | ######## ##### #????# % ##%#???????? | | #???# #????# ###### ###=#???????? | | #########"#??# < ##????# #????####?#%#???????? | | ?????????##??## ##?????# #??????####=###?????? | | ??????????????#### #??????# #??????# #?????? | | ?????????????????# ######## #??????# #?????? | | ?????######??????#%## % #??????# #?????? | | ???### ##????##"## #######??????# #?????? | | #### #????#"%" #??????????#?# #?????? | | # #????# " % #????????? #?# #?????? | | #???## #####???????? ##########?????? | | #??## % #??????????? ####??????????? | | # #### ##???????## #?????????? | | ### ## ## ####???# ?????????? | | ??####### u u d ### #????????? | | ????????# t #?????????? | | ????????# ! a = @ #?????????? | | ????????# %! !% #?????????? | | ????????# ! = ### #????????? | | ????????# ##?????? ?????????? | | ????????# ####????????????????????? | | ????????# #??????????????????????? | | ????????## # #?????????????????????? | | ?????????# ### #?????????????????????? | | ?????????? #?#### ##?????????????????????? | | ?????????? #???####??????????????????????? | | ??????????? #?????????????????????????????? | | ?????????? ##?????????????????????????????? | | ????????? ##??????????????????????????????? | | ???????? ##???????????????????????????????? | | ??????? ##????????????????????????????????? | | ??????## ###?????????????????????????????????? | | ???????## #????????????????????????????????????? | | ????????## ?????????????????????????????????????? | | ?????????# ?????????????????????????????????????? | | ?????????# ?????????????????????????????????????? | | ?????????? ?????????????????????????????????????? | | ?????????? ??????????????????????????????????????? | | ?????????????????????????????????????????????????? | | ?????????????????????????????????????????????????? | | ?????????????????????????????????????????????????? | +----------------------------------------------------+ Best States ------------- Heat Dissipation 42 Energy Generation 14 Energy Capacity 280 Matter Stores 300 Matter Capacity 300 Sight Range 16 Terrain Scan Density 10 Evasion (%) 40 Recoil Reduction 3 Item Schematics ----------------- Lgt. Cannon | -10/Materials | Hacked Mining Laser | -9/Materials | Scanalyzed Robot Schematics ------------------ None Fabricated ------------ Nothing Alien Tech Used ----------------- None Achievements -------------- None Challenges ------------ None Game ------ Seed TeslaHypercooledStorage Manual? 0 Play Time 00:24:09 Cumulative 139.2 hours Start 2021.03.19 @ 23:01:48 End 2021.03.19 @ 23:37:46 Sessions 1 Manual Loads 0 Difficulty Rogue Special Mode None Game No. 200 Rogue 176 Adventurer 22 Explorer 2 Win Type - Total 1 Types 1/0/0/0/0/0/0/0/0 Lore% 52 Gallery% 58 Achievement% 45 Wizard Run 0 Options --------- ASCII 0 Keyboard 0 Movement Numpad Keybinds 0 Fullscreen 1 Font 14/SmallcapsGlow Map View 84x54 Tactical HUD 1 Map Filters NONE Filters NONE Steam 1 RUN: bfd4e3b1-5964-4af3-8771-d6739dd5f9f3